Cogmind - Beta 15 @@@ ROGUE MODE // 2025.07.10 @ 14:13:55 Player: knux400 Result: Destroyed by X-67 Chaingunner with Heavy Machine Gun Performance ------------- Evolutions (4) 2000 Regions Visited (5) 1000 Robots Destroyed (111) 555 Value Destroyed (3610) 3610 Prototype IDs (4) 80 Alien Tech Used (0) 0 Bonus (280) 280 TOTAL SCORE: 7525 Bonus ------- High Alert Combat Kills 280 Cogmind --------- Core Integrity 0/850 Matter 38/300 Energy 50/100 System Corruption 3% Temperature Cool (9) Movement Core (50) Location -6/Factory Parts ------- > --- POWER (2) -------- (None) > --- PROPULSION (4) --- (None) > --- UTILITY (5) ------ (None) > --- WEAPON (4) ------- (None) > --- INVENTORY (5) ---- Medium Treads Carbon-fiber Leg Carbon-fiber Leg Flexi-carbon Leg Weapon Cycler Peak State ------------ > --- POWER ------------ Light Nuclear Core Light Angular Momentum Engine > --- PROPULSION ------- Armored Huge Wheel Armored Huge Wheel > --- UTILITY ---------- Large Storage Unit Launcher Guidance Computer Improved Light Armor Plating Improved Light Armor Plating Medium Reactive Plating > --- WEAPON ----------- Heavy Laser Flak Gun Long-range Missile Launcher Impact Mace > --- INVENTORY -------- Medium Treads Carbon-fiber Leg Carbon-fiber Leg Flexi-carbon Leg Armored Huge Wheel Gravity Neutralizer Weapon Cycler Improved Heavy Laser Missile Launcher [Rating: 61] Favorites ----------- Power Ion Engine Engine Ion Engine Power Core Micro Nuclear Core Propulsion Armored Huge Wheel Treads Light Treads Leg Improved Aluminum Leg Wheel Armored Huge Wheel Utility Large Storage Unit Device Matter Filter Storage Large Storage Unit Processor Launcher Guidance Computer Protection Medium Armor Plating Weapon Shotgun Energy Gun Medium Laser Ballistic Gun Shotgun Launcher Missile Launcher Impact Weapon Mace Slashing Weapon Greatsword Build | -11 -10 -9 -8 -7 -6 ------- Run | Yrd Mat Mat Mat Fac Fac Slots Evolved 8 | . . 2 2 2 2 Power 1 | . . . . . 1 Propulsion 2 | . . 1 . 1 . Utility 3 | . . 1 1 1 . Weapon 2 | . . . 1 . 1 Parts Attached 75 | 6 8 13 9 25 14 Power 11 | 1 1 1 . 4 4 Engine 9 | 1 1 1 . 3 3 Core 2 | . . . . 1 1 Reactor . | . . . . . . Propulsion 18 | 2 3 3 2 7 1 Treads 3 | 2 1 . . . . Leg 9 | . . 3 2 4 . Wheel 6 | . 2 . . 3 1 Hover . | . . . . . . Flight . | . . . . . . Utility 24 | 1 3 4 5 6 5 Device 7 | . 1 2 1 1 2 Storage 2 | 1 1 . . . . Processor 1 | . . . . 1 . Hackware . | . . . . . . Protection 14 | . 1 2 4 4 3 Artifact . | . . . . . . Weapon 22 | 2 1 5 2 8 4 Energy Gun 4 | 1 1 . . . 2 Energy Cannon . | . . . . . . Ballistic Gun 10 | 1 . 4 2 2 1 Ballistic Cannon . | . . . . . . Launcher 4 | . . . . 3 1 Special Weapon . | . . . . . . Impact Weapon 3 | . . 1 . 2 . Slashing Weapon 1 | . . . . 1 . Piercing Weapon . | . . . . . . Special Melee Weapon . | . . . . . . Unidentified Prototypes 4 | . . . . 1 3 Parts Lost 52 | . 5 6 3 13 25 Power 9 | . 1 1 . 4 3 Propulsion 12 | . 2 3 1 2 4 Utility 16 | . 1 1 1 4 9 Weapon 15 | . 1 1 1 3 9 Highest Loss Streak 10 | . 4 3 3 5 10 To Critical Strikes . | . . . . . . Average Backups 9 | 2 6 7 13 11 8 Power . | . 2 1 1 . . Propulsion 2 | 1 2 1 2 2 3 Utility 2 | . . . 4 4 2 Weapon 3 | . . 3 4 4 2 Tool/Special . | . . . . . . Unused Backups 11 | . 1 . 2 3 5 Power 1 | . 1 . . . . Propulsion 7 | . . . 2 1 4 Utility 1 | . . . . . 1 Weapon 2 | . . . . 2 . Tool/Special . | . . . . . . Average Slot Usage (%) 86 | . 88 90 98 87 72 Engine 7 | . 12 10 9 3 8 Treads 3 | . 21 1 . . . Leg 11 | . . 13 26 16 . Wheel 7 | . 3 12 . 6 12 Device 6 | . 2 17 9 3 3 Storage 8 | . 14 11 9 7 6 Processor 2 | . . . . 4 6 Protection 14 | . 7 2 18 21 12 Energy Gun 3 | . 16 4 . . 2 Ballistic Gun 9 | . 9 10 17 7 4 Launcher 2 | . . . . 4 5 Impact Weapon 4 | . . 6 9 5 2 Slashing Weapon 1 | . . . . 1 3 Peak Build Rating 61 | 6 7 16 26 47 61 Average Rating 29 | 4 6 11 23 37 51 On Entrance 16 | . 6 7 16 26 43 Naked Turns . | . . . . . . Heaviest Build 83 | 13 30 38 49 72 83 Greatest Support 66 | 40 40 36 52 66 56 Greatest Overweight (x) 9 | . 1 3 1 1 9 Average Overweight (x) . | . . 1 . . . Largest Inventory Capacity 15 | 8 15 15 15 15 15 Average Capacity 13 | 7 8 15 15 15 15 Most Carried 15 | 5 8 14 15 15 14 Average Carried 10 | 2 6 7 13 12 10 Final Capacity 15 | 8 15 15 15 15 5 Final Carried 15 | 4 3 14 15 13 5 Class Distribution -------------------- 77% | Mutant 17% | Scavenger-Mutant 5% | Tank Dominant Class ---------------- Mutant | -10/Materials Mutant | -9/Materials Mutant | -8/Materials Mutant | -7/Factory Mutant | -6/Factory Resources | -11 -10 -9 -8 -7 -6 ----------- Run | Yrd Mat Mat Mat Fac Fac Matter Collected 1896 | 188 138 301 228 721 320 Remotely 265 | . . 104 161 . . Salvage Created 3312 | . 220 343 464 905 1380 Parts 178 | . 17 30 28 33 70 Haulers Intercepted . | . . . . . . Recyclers Shooed 3 | . . . . . 3 Parts Field Recycled . | . . . . . . Retrieved Matter . | . . . . . . Parts Self-Destructed . | . . . . . . Prevented . | . . . . . . Kills | -11 -10 -9 -8 -7 -6 ------- Run | Yrd Mat Mat Mat Fac Fac Combat Hostiles Destroyed 85 | . 9 15 10 18 33 Melee 11 | . . . 2 5 4 Guns 37 | . 9 15 8 4 1 AOE 28 | . . . . 3 25 Classes Destroyed 11 | . 2 2 3 4 . Worker 5 | . . . . 2 3 Builder 10 | . . . 1 1 8 Tunneler 1 | . . . . 1 . Recycler 5 | . . . 1 2 2 Watcher 5 | . . 1 1 1 2 Swarmer 30 | . 5 11 4 . 10 Grunt 42 | . 4 2 3 13 20 Sentry 6 | . . 2 1 2 1 Specialist 3 | . . . 2 . 1 Hunter 2 | . . . . 2 . Programmer 2 | . . . . 1 1 Best Kill Streak 11 | . 3 5 4 4 11 Combat Bots Only 10 | . 3 5 4 3 10 Max Kills in Single Turn 4 | . 1 1 2 2 4 Gunslinging . | . . . . . . Exploded 3 | . . . . 1 3 Melee 1 | . . . 1 1 1 Uniques/NPCs Destroyed . | . . . . . . Combat | -11 -10 -9 -8 -7 -6 -------- Run | Yrd Mat Mat Mat Fac Fac Hostile Shots Fired 847 | . 132 84 82 215 334 Missed 231 | . 30 17 19 59 106 Hits 616 | . 102 67 63 156 228 Melee 1 | . . . . . 1 Projectile 615 | . 102 67 63 156 227 Critical Strikes 13 | . 1 1 3 3 5 Part Disruptions 1 | . . . . . 1 Damage Taken 8755 | . 923 675 921 2304 3932 Core 1316 | . 217 88 62 83 866 Absorbed by Shields . | . . . . . . Ignored by Resistances 19 | . . . . . 19 Regen/Repaired (Parts) 303 | . . . 76 227 . Core Remaining (%) 73 | 100 13 78 88 88 . Volleys Fired 213 | . 60 35 25 50 43 Largest 2 | . 2 2 2 2 2 Hottest 112 | . 70 90 48 59 112 Shots Fired 288 | . 75 51 47 64 51 Gun 238 | . 75 51 47 46 19 Cannon . | . . . . . . Launcher 50 | . . . . 18 32 Special . | . . . . . . Kinetic 185 | . 48 33 47 46 11 Thermal 53 | . 27 18 . . 8 Explosive 50 | . . . . 18 32 Electromagnetic . | . . . . . . Robot Hit Streak 15 | . 6 6 5 15 9 Robot Miss Streak 7 | . 3 4 2 2 7 Penetration Max . | . . . . . . Secondary Targets 3 | . 1 1 1 . . Max Gunslinging Chain 1 | . 1 1 1 . . Shots Hit Robots 274 | . 48 39 41 82 64 Core Hits 197 | . 20 23 16 49 89 Critical Kills 4 | . . . 2 2 . Critical Parts Destroyed 9 | . . . . 6 3 Critical Strikes 16 | . 2 1 2 8 3 Burn 3 | . 2 1 . . . Destroy 3 | . . . 1 2 . Smash 10 | . . . 1 6 3 Melee Attacks 76 | . . 3 7 37 29 Impact 56 | . . 3 7 35 11 Slashing 20 | . . . . 2 18 Piercing . | . . . . . . Sneak Attacks 10 | . . 1 1 4 4 Combat Hostiles 1 | . . . . 1 . Follow-up Attacks . | . . . . . . Damage Inflicted 10269 | 2 491 556 950 2595 5675 Guns 2457 | . 478 455 569 619 336 Cannons . | . . . . . . Explosions 4814 | . . . 152 702 3960 Melee 2983 | . . 101 229 1274 1379 Ramming 15 | 2 13 . . . . Kinetic 1951 | . 241 338 569 619 184 Thermal 713 | . 237 117 152 55 152 Explosive 4523 | . . . . 647 3876 Electromagnetic 84 | . . . . . 84 Impact 2072 | . . 101 229 1163 579 Slashing 911 | . . . . 111 800 Piercing . | . . . . . . Highest Corruption 3 | . . . . . 3 Average Corruption 1 | . . . . . 1 Corruption Purged . | . . . . . . Corruption Blocked . | . . . . . . Effects 2 | . . . . . 2 Message Errors 1 | . . . . . 1 Energy Discharges 1 | . . . . . 1 Overload Shots . | . . . . . . Overflow Damage 988 | . . . 97 457 434 Projectiles . | . . . . . . Explosions 195 | . . . 78 24 93 Melee 793 | . . . 19 433 341 Knockbacks 9 | . . . . 6 3 Impact 9 | . . . . 6 3 Kinetic . | . . . . . . Secondary . | . . . . . . Self-Inflicted Damage 374 | . . . 207 . 167 Shots 6 | . . . 2 . 4 Rammed 10 | 1 9 . . . . Targets Rammed 10 | 1 9 . . . . Kicked . | . . . . . . Crushed . | . . . . . . Highest Temperature 343 | . 343 21 37 104 256 Average Temperature 71 | . 140 10 17 21 65 Received Heat Transfer 2571 | . 192 162 117 891 1209 Effects 2 | . 2 . . . . Energy Bleed 1 | . 1 . . . . Damage (minor) 1 | . 1 . . . . Siege Activations . | . . . . . . Martial Activations . | . . . . . . Shielding Activations . | . . . . . . Robots Disrupted . | . . . . . . Combat Hostiles . | . . . . . . Robots Corrupted 10 | . . . . 7 3 Combat Hostiles 9 | . . . . 6 3 Parts Fried 11 | . . . . 7 4 Impact Corruptions 23 | . . . 1 11 11 Robots Melted . | . . . . . . Combat Hostiles . | . . . . . . Parts Melted 3 | . 1 2 . . . Heat Transferred 1632 | . 851 372 100 50 259 Parts Sabotaged 2 | . . . . . 2 Parts Stolen . | . . . . . . Parts Stripped . | . . . . . . Power Chain Reactions . | . . . . . . Alert | -11 -10 -9 -8 -7 -6 ------- Run | Yrd Mat Mat Mat Fac Fac Maximum Alert Level 3 | . . 1 1 1 3 Low Security (%) 86 | 100 100 98 93 84 66 Level 1 7 | . . 1 6 15 5 Level 2 3 | . . . . . 14 Level 3 2 | . . . . . 13 Level 4 . | . . . . . . Level 5 . | . . . . . . High Security . | . . . . . . Max Security . | . . . . . . Peak Influence 877 | . 80 200 250 239 877 Initial 109 | . . 21 58 109 102 Average 143 | . 24 131 59 160 279 Influence Increases 2910 | . 229 367 372 689 1253 Destroy 0b10 Robot/C 1700 | . 180 300 200 360 660 Destroy 0b10 Robot/NC 130 | . . 5 15 35 75 Destroy Leader 350 | . 40 62 42 92 114 Successful Hack 35 | . 9 . . 26 . Disable Machine 270 | . . . 60 60 150 Destroy Structure 290 | . . . 25 71 194 Lose Combat Pursuer 135 | . . . 30 45 60 Influence Decreases 2115 | . 177 280 269 721 668 Entered New Map 353 | . . 31 81 133 108 Time Decay 1251 | . 127 198 158 458 310 Lost Part 511 | . 50 51 30 130 250 Squads Dispatched 16 | . 1 1 2 6 6 Investigation 2 | . . . 1 1 . Extermination 3 | . . . . 2 1 Reinforcement 10 | . 1 1 1 2 5 Assault . | . . . . . . Garrison 1 | . . . . 1 . Intercept . | . . . . . . Searches Triggered . | . . . . . . Construction Impeded 2 | . . . . . 2 Haulers Reinforced 2 | . . . . . 2 Active Scanning Responses . | . . . . . . Cargo Convoy Interrupts 1 | . . . . . 1 Stealth | -11 -10 -9 -8 -7 -6 --------- Run | Yrd Mat Mat Mat Fac Fac Distress Signals 13 | . 3 1 4 2 3 Communications Jammed . | . . . . . . Distress Signals . | . . . . . . Times Spotted 153 | . 17 20 16 30 70 Peak Tracking Total 19 | . 7 7 5 6 19 Tactical Retreats 9 | . . 3 2 3 1 Traps | -11 -10 -9 -8 -7 -6 ------- Run | Yrd Mat Mat Mat Fac Fac Traps Triggered 3 | . 1 . 1 1 . Indirectly . | . . . . . . Trap Hack Attempts . | . . . . . . Triggered . | . . . . . . Disarmed . | . . . . . . Reprogrammed . | . . . . . . Reused . | . . . . . . Traps Extracted . | . . . . . . Installed . | . . . . . . Triggered . | . . . . . . Machines | -11 -10 -9 -8 -7 -6 ---------- Run | Yrd Mat Mat Mat Fac Fac Machines Disabled 18 | . . . 4 4 10 Max in Single Turn 4 | . . . 4 2 2 Garrison Access 1 | . . . . 1 . Machines Repaired . | . . . . . . Machines Dismantled . | . . . . . . Machines Sabotaged . | . . . . . . Overloaded Fab Kills . | . . . . . . Hacking | -11 -10 -9 -8 -7 -6 --------- Run | Yrd Mat Mat Mat Fac Fac Machines Accessed 6 | . 1 . 1 3 1 Terminals 2 | . 1 . . . 1 Fabricators . | . . . . . . Repair Stations 3 | . . . 1 2 . Recycling Units . | . . . . . . Scanalyzers . | . . . . . . Garrison Access 1 | . . . . 1 . Total Hacks 16 | . 3 . 4 7 2 Successful 9 | . 2 . 3 4 . Failed 7 | . 1 . 1 3 2 Catastrophic . | . . . . . . Database Lockouts . | . . . . . . Manual . | . . . . . . Terminals 5 | . 3 . . . 2 Fabricators . | . . . . . . Repair Stations 10 | . . . 4 6 . Recycling Units . | . . . . . . Scanalyzers . | . . . . . . Garrison Access 1 | . . . . 1 . Terminal Hacks 2 | . 2 . . . . Record 2 | . 2 . . . . Fabricator Hacks . | . . . . . . Repair Station Hacks 6 | . . . 3 3 . Scan Component 4 | . . . 2 2 . Repair 2 | . . . 1 1 . Recycling Unit Hacks . | . . . . . . Scanalyzer . | . . . . . . Garrison Access Hacks 1 | . . . . 1 . Seal Access 1 | . . . . 1 . Unauthorized Hacks . | . . . . . . Terminals . | . . . . . . Fabricators . | . . . . . . Repair Stations . | . . . . . . Recycling Units . | . . . . . . Scanalyzers . | . . . . . . Garrison Access . | . . . . . . Data Cores Recovered . | . . . . . . Used . | . . . . . . Hacking Detections 5 | . 1 . 1 2 1 Full Trace Events 2 | . . . 1 1 . Feedback Events . | . . . . . . Feedback Blocked . | . . . . . . Robot Schematics Acquired . | . . . . . . Robots Built . | . . . . . . Authchips . | . . . . . . Time . | . . . . . . Total Robot Build Rating . | . . . . . . Part Schematics Acquired . | . . . . . . Parts Built . | . . . . . . Authchips . | . . . . . . Time . | . . . . . . Total Part Build Rating . | . . . . . . Parts Repaired 2 | . . . 1 1 . Time 51 | . . . 32 19 . Parts Recycled . | . . . . . . Recycled Matter . | . . . . . . Retrieved Matter . | . . . . . . Retrieved Components . | . . . . . . Parts Scanalyzed . | . . . . . . Part Schematics Acquired . | . . . . . . Parts Damaged . | . . . . . . Bothacking | -11 -10 -9 -8 -7 -6 ------------ Run | Yrd Mat Mat Mat Fac Fac Used RIF Installer . | . . . . . . Robots Hacked . | . . . . . . Non-combat . | . . . . . . Combat . | . . . . . . Robot Hacks Applied . | . . . . . . Relay Couplers Released . | . . . . . . Fabnet Peak Effective % . | . . . . . . Robots Rewired . | . . . . . . Allies Hacked . | . . . . . . Hacks Repelled . | . . . . . . Allies | -11 -10 -9 -8 -7 -6 -------- Run | Yrd Mat Mat Mat Fac Fac Total Allies . | . . . . . . Largest Group . | . . . . . . Highest-Rated Group . | . . . . . . Highest-Rated Ally . | . . . . . . Total Orders . | . . . . . . Ally Attacks . | . . . . . . Total Damage . | . . . . . . Kills . | . . . . . . Allies Corrupted . | . . . . . . Allies Melted . | . . . . . . Intel | -11 -10 -9 -8 -7 -6 ------- Run | Yrd Mat Mat Mat Fac Fac Active Infowar (turns) 293 | . 63 230 . . . ECM 293 | . 63 230 . . . Robot Analysis Total . | . . . . . . Derelict Logs Recovered . | . . . . . . Drone Launches . | . . . . . . Drone Recoveries . | . . . . . . Exploration | -11 -10 -9 -8 -7 -6 ------------- Run | Yrd Mat Mat Mat Fac Fac Turns Passed 3287 | 139 407 413 489 1155 684 Spaces Moved 1791 | 81 184 232 201 697 396 Core 8 | 5 . . . . 3 Treads 200 | 76 124 . . . . Legs 588 | . . 61 201 326 . Wheels 995 | . 60 171 . 371 393 Hover . | . . . . . . Flight . | . . . . . . Fastest Speed 50 | 50 80 95 123 100 50 Average Speed 124 | 153 134 115 173 113 113 Slowest Speed 500 | 160 160 260 195 195 500 Overloaded Moves . | . . . . . . Propulsion Burnouts . | . . . . . . Robots Hopped . | . . . . . . Potential Cave-ins . | . . . . . . Cave-ins Triggered . | . . . . . . Exploration Rate (%) 21 | 4 45 21 20 25 15 Regions Visited 5 Branch Regions . Pre-discovered Areas . | . . . . . . Known Exits Taken . | . . . . . . Unknown Exits Taken 5 | 1 1 1 1 1 . Scrap Searched . | . . . . . . Spaces Dug 3 | . . . . 1 2 Terrain Destroyed 343 | . . . 25 82 236 Melee 3 | . . . . 1 2 Projectile . | . . . . . . AOE 340 | . . . 25 81 234 Terrain Rammed . | . . . . . . Walls Destroyed . | . . . . . . Machines Disabled . | . . . . . . Actions | -11 -10 -9 -8 -7 -6 --------- Run | Yrd Mat Mat Mat Fac Fac Total 2408 | 93 270 319 281 930 515 Wait 140 | . . 20 21 88 11 Move 1786 | 80 183 231 200 696 396 Hop . | . . . . . . Pick Up 47 | 6 5 13 8 7 8 Fast Attach 31 | 4 3 6 2 8 8 Attach 43 | 2 5 3 5 14 14 Detach 10 | . . 1 . 8 1 Swap 27 | . 3 5 6 10 3 Drop 25 | . 2 2 7 12 2 Fire 213 | . 60 35 25 50 43 Melee 76 | . . 3 7 37 29 Ram . | . . . . . . Kick . | . . . . . . Crush 10 | 1 9 . . . . Escape Stasis . | . . . . . . Rewire . | . . . . . . Trap . | . . . . . . Miscellaneous . | . . . . . . Route ------- -11/Scrapyard -10/Materials -9/Materials -8/Materials -7/Factory -6/Factory History --------- Turn | Location | Event 13 | -11/Scrapyard | Discovered new exit (range 16) 140 | -11/Scrapyard | Entered Materials 307 | -10/Materials | Build established: Mutant 420 | -10/Materials | Core integrity fell below 50% 454 | -10/Materials | Lost 4 parts (2n1u1w) 485 | -10/Materials | Core integrity fell below 20% 530 | -10/Materials | Discovered new exit (range 8) 547 | -10/Materials | Entered another Materials area 547 | -9/Materials | Evolved 2 slots: Propulsion x1, Utility x1 775 | -9/Materials | Discovered new exit (range 11) 869 | -9/Materials | Lost 3 parts (1p1n1u) 960 | -9/Materials | Entered another Materials area 960 | -8/Materials | Evolved 2 slots: Utility x1, Weapon x1 1075 | -8/Materials | Repaired Imp. Aluminum Leg 1391 | -8/Materials | Lost 3 parts (1n1u1w) 1397 | -8/Materials | Discovered new exit (range 14) 1449 | -8/Materials | Entered Factory 1449 | -7/Factory | Evolved 2 slots: Propulsion x1, Utility x1 1589 | -7/Factory | Repaired Hrd. Medium Armor Plating 1720 | -7/Factory | Lost 5 parts (1p2n1u1w) 1775 | -7/Factory | Garrison activated, responded to threat 1903 | -7/Factory | Lost 3 parts (1p2u) 2006 | -7/Factory | Build established: Scavenger-Mutant 2364 | -7/Factory | Build established: Mutant 2583 | -7/Factory | Discovered new exit (range 7) 2604 | -7/Factory | Entered another Factory area 2604 | -6/Factory | Evolved 2 slots: Power x1, Weapon x1 2821 | -6/Factory | Lost 5 parts (3u2w) 3059 | -6/Factory | Lost 3 parts (1n1u1w) 3234 | -6/Factory | Core integrity fell below 50% 3255 | -6/Factory | Destroyed 10 combat bots 3262 | -6/Factory | Cargo convoy interrupted 3277 | -6/Factory | Lost 10 parts (2p1n3u4w) 3286 | -6/Factory | Core integrity fell below 20% 3288 | -6/Factory | Released all parts (3) 3288 | -6/Factory | Destroyed by X-67 Chaingunner with Heavy Machine Gun Last Messages --------------- Terminal disabled. X-67 Chaingunner suffers critical hit (Smash). Destroyed Flexi-carbon Leg. X-67 Chaingunner system corrupted by crushing effect. X-67 Chaingunner system terminally corrupted. Adv. Heat Sink fried. Kinecellerator fried. Angular Momentum Engine fried. Arm. Huge Wheel destroyed. 29PFD>JBHDDJWGPFFV6Z96GSD1H0 Hrd. Light Armor Plating destroyed. Slug penetrates P-60 Hacker. Impact Mace destroyed. Slug penetrates Wall. Released Lrg. Storage Unit. Released Launcher Guidance Computer. Released Gravity Neutralizer. P-60 Hacker destroyed. Slug penetrates Wall. Slug penetrates H-66 Slayer. Map ----- +----------------------------------------------------+ | ?????????????????????????????????????????????????? | | ?????????????????????????????????????????????????? | | ?????????????????????????????????????????????????? | | ?????????????????????????????????????????????????? | | ?????????????????????????????????????????????????? | | ?????????????????????????????????????????????????? | | ?????????????????????????????????????????????????? | | ?????????????????????????????????????????????????? | | ?????????????????????????????????????????????????? | | ?????????????????????????????????????????????????? | | ?????????????????????????????????????????????????? | | ?????????????????????????#####???????????????????? | | ????????????????????????? ??????????????????? | | ????????????????????????? #??????????????????? | | ????????????????????????? #??????????????????? | | ????????????????????????? #??????????????????? | | ????????????????????????? #??????????????????? | | ???? ???????????????#A #??""??????????????? | | # #??????????????# #?? ??????????????? | | # #??????????????# #? ???????????????? | | # +??????????????# # ????????????????? | | # #??????????????# # ?????????????????? | | # # ##########?????# +??????????????????? | | # ####### A#??????????????????? | | # # ! # # #??????????????????? | | # # #@ #??????????????????? | | # # = # [%=! #??????????????????? | | # " # p!!#k #??????????????????? | | # # # gx*%#h #??????????????????? | | " = + g= hhR k #??????????????????? | | # g #%g #??????????????????? | | ;g # #??????????????????? | | [ ###### #??????????????????? | | ! %% A h ?????????????????? | | % ???????????????? | | = =% % ?????????????? | | %! ????????????? | | % % k ????????????? | | * #/### #######+##### #???????????? | | ??? ### ## ????? ???? ????????????? | | ? !#?###? ???? ????? ????????????? | | #= #????? ""????" ?????? ??????????????? | | # """ """ #????? """???" ?????????????????????? | | # """ """ #????? ""????? ?????????????????????? | | # """ ??" #????? ?????? ?????????????????????? | | # ???? #????? "????????????????????????????? | | # ""????? ?????? ?????????????????????????????? | | # "???????????????????????????????????????????? | | ? ????????????????????????????????????????????? | | ?? ??????????????????????????????????????????????? | +----------------------------------------------------+ Best States ------------- Heat Dissipation 38 Energy Generation 27 Energy Capacity 465 Matter Stores 300 Matter Capacity 300 Sight Range 16 Terrain Scan Density 10 ECM Strength 1 Additional Mass Support 9 Armor Coverage 675 Resistance: KI 30 Evasion (%) 55 Launcher Accuracy 20 Recoil Reduction 2 Matter Filtering 30 Item Schematics ----------------- None Robot Schematics ------------------ None Fabricated ------------ Nothing Repaired ---------- Imp. Aluminum Leg | 24% | -8/Materials Hrd. Medium Armor Plating | 5% | -7/Factory Alien Tech Used ----------------- None Achievements -------------- Let's See Who's Tougher Remodeling Watch This! Challenges ------------ None Game ------ Seed TeslaCargoBooster Manual? 0 Play Time 01:18:20 Cumulative 4.8 hours Start 2025.07.10 @ 12:57:29 End 2025.07.10 @ 14:13:55 Sessions 1 Manual Loads 0 Difficulty Rogue Special Mode None Game No. 3 Rogue 3 Adventurer 0 Explorer 0 Win Type - Total 0 Types 0/0/0/0/0/0/0/0/0/0 Lore% 0 Gallery% 9 Achievement% 9 Wizard Run 0 Options --------- Layout 0 ASCII 0 Keyboard 0 Movement Numpad Keybinds 0 Fullscreen 2 Font 16/Terminus Map View 44x27 Zoom Use 99% Tactical HUD 0 Map Filters NONE Filters NONE Steam 1 RUN: f0fb5ee3-9c13-4755-9a44-bac2619d27f5